bitfinex/quotes_SOLUSD_20250929
["timestamp","ask_amount","ask_price","bid_price","bid_amount"]
[1759178408208,0.66,214.33,214.26,0.43]
[1759178408415,3.14318682,214.34,214.27,34.1]
[1759178408730,3.80318682,214.34,214.27,34.1]
[1759178408932,0.66,214.34,214.27,34.1]
[1759178409110,5.32548717,214.34,214.27,34.1]
[1759178409310,4.66549687,214.34,214.26,3.79108402]
[1759178409639,4.66592011,214.32,214.27,34.08]
[1759178409845,4.66592011,214.32,214.25,4.66731159]
[1759178410010,4.66592011,214.32,214.24,0.43]
[1759178410011,0.66,214.31,214.24,4.66765191]
[1759178410332,0.66,214.3,214.22,31.09794918]
[1759178410639,0.66,214.29,214.22,64.74794918]
[1759178411017,13.59559401,214.31,214.23,0.43]
[1759178411514,5.32613011,214.32,214.24,4.66766243]
[1759178411834,0.66,214.31,214.24,5.09766243]
[1759178413143,3.14318682,214.33,214.25,0.43]
[1759178413310,3.80318682,214.34,214.25,0.43]
[1759178413511,0.66,214.34,214.25,0.43]
[1759178414138,4.66590933,214.33,214.26,4.66722673]
[1759178414317,0.69,214.32,214.25,0.43]
[1759178414713,0.69,214.32,214.26,34.06]
[1759178415617,4.66590933,214.33,214.26,34.49]
[1759178415840,4.66590933,214.33,214.27,4.66700891]
[1759178416025,5.35590933,214.33,214.26,34.49]
[1759178417118,5.35590933,214.33,214.26,39.15721642]
[1759178417320,0.69,214.33,214.26,39.15721642]
[1759178417832,0.69,214.33,214.26,5.09721642]
[1759178418034,0.69,214.33,214.26,39.15721642]
[1759178418339,5.35575985,214.33,214.26,34.49]
[1759178419238,5.35575985,214.33,214.26,39.15719008]
[1759178420319,5.35575985,214.33,214.28,4.66679111]
[1759178420630,0.69,214.32,214.27,5.0969752]
[1759178421736,0.69,214.32,214.27,0.43]
[1759178421917,0.69,214.32,214.27,34.47]
[1759178422622,5.35595593,214.32,214.27,39.13699428]
[1759178423640,5.35595593,214.32,214.24,4.66766243]
[1759178423833,5.35595593,214.32,214.27,0.43]
[1759178425218,3.83318682,214.34,214.28,0.43]
[1759178425443,5.35554363,214.34,214.28,0.43]
[1759178425631,0.69,214.34,214.28,0.43]
[1759178426346,7.80847357,214.35,214.28,0.43]
[1759178426530,3.83318682,214.35,214.28,0.43]
[1759178426731,3.83318682,214.35,214.29,4.66657333]
[1759178427422,3.83318682,214.35,214.29,5.09657333]
[1759178427749,3.14318682,214.35,214.29,5.09657333]
[1759178427966,8.49846775,214.35,214.29,5.09657333]
[1759178428120,0.69,214.34,214.29,0.43]
[1759178428321,0.69,214.34,214.2,0.43]
[1759178428322,3.36108402,214.31,214.2,0.43]
[1759178428520,0.69,214.3,214.21,30.0]
[1759178428742,4.66657333,214.29,214.21,30.0]
[1759178429052,0.69,214.28,214.21,30.0]
[1759178429562,0.69,214.27,214.21,30.0]
[1759178429925,5.35703992,214.27,214.21,34.66829281]
[1759178430132,0.69,214.27,214.21,34.66829281]
[1759178430327,11.66579374,214.31,214.22,0.43]
[1759178430524,0.69,214.3,214.22,0.43]
[1759178431257,29.83274785,214.32,214.22,0.43]
[1759178431448,29.14274785,214.32,214.22,0.43]
[1759178431622,0.69,214.31,214.22,0.43]
[1759178432025,5.35616399,214.31,214.23,4.66788031]
[1759178432250,0.69,214.31,214.23,16.33758109]
[1759178432549,0.69,214.31,214.24,0.43]
[1759178433321,0.69,214.33,214.24,0.43]
[1759178433525,5.35577827,214.33,214.24,0.43]
[1759178433753,0.69,214.33,214.25,34.02]
[1759178434049,0.69,214.33,214.27,4.66700891]
[1759178434249,0.69,214.33,214.27,5.09700891]
[1759178435957,3.83309042,214.35,214.28,0.43]
[1759178436134,3.83309042,214.35,214.29,4.66657333]
[1759178436331,0.69,214.34,214.25,60.02]
[1759178436549,0.69,214.33,214.22,4.66800843]
[1759178436861,0.69,214.32,214.22,34.0]
[1759178437071,0.69,214.31,214.22,34.0]
[1759178437356,0.69,214.3,214.22,34.0]
[1759178437541,0.69,214.29,214.22,34.0]
[1759178437859,0.69,214.28,214.22,34.0]
[1759178438031,0.69,214.27,214.22,34.0]
[1759178438240,5.35704331,214.27,214.18,37.67209403]
[1759178438447,0.69,214.26,214.21,34.0]
[1759178438780,0.69,214.28,214.2,34.0]
[1759178439067,0.69,214.28,214.21,0.43]
[1759178439452,7.80941314,214.31,214.21,0.43]
[1759178439650,0.69,214.29,214.21,0.43]
[1759178440265,5.35663354,214.29,214.22,4.66809821]
[1759178441162,5.35663354,214.29,214.23,0.43]
[1759178441363,0.69,214.29,214.23,0.43]
[1759178443265,0.69,214.32,214.23,16.76740187]
[1759178443455,0.69,214.31,214.24,0.43]
[1759178443761,0.69,214.31,214.25,33.98]
[1759178444145,7.80900373,214.33,214.26,0.43]
[1759178444146,3.83309042,214.33,214.26,0.43]
[1759178444553,0.69,214.33,214.26,0.43]
[1759178445262,5.35574698,214.33,214.2,11.67094705]
[1759178445570,0.69,214.32,214.23,26.0]
[1759178445781,0.69,214.31,214.23,26.0]
[1759178446072,0.69,214.3,214.23,26.0]
[1759178446272,30.66574698,214.33,214.25,2.15103987]
[1759178446273,3.14309042,214.33,214.25,2.15103987]
[1759178446463,3.14309042,214.35,214.26,34.41]
[1759178446644,0.69,214.34,214.26,34.41]
[1759178446944,0.69,214.33,214.27,33.98]
[1759178447758,5.35571111,214.33,214.27,4.66700891]
[1759178447956,5.35571111,214.33,214.28,33.98]
[1759178448174,0.69,214.32,214.24,26.0]
[1759178448371,2.84103987,214.31,214.19,0.43]
[1759178448672,3.14309042,214.3,214.21,33.98]
[1759178448974,0.69,214.29,214.21,0.43]
[1759178449270,0.69,214.29,214.18,0.43]
[1759178449572,0.69,214.29,214.19,60.41]
[1759178449751,0.69,214.28,214.2,0.43]
[1759178450069,4.66700891,214.27,214.21,4.66831613]
[1759178450258,5.35700891,214.27,214.2,0.43]
[1759178451271,5.35700891,214.27,214.19,59.98]
[1759178451458,0.66,214.26,214.19,60.41]
[1759178452162,5.32735413,214.26,214.19,65.07870862]
[1759178452363,0.66,214.25,214.19,30.66870862]
[1759178453062,5.32764435,214.25,214.19,30.66870862]
[1759178453464,5.32764435,214.25,214.19,64.62870862]
[1759178453661,0.66,214.27,214.2,0.43]
[1759178453869,0.66,214.3,214.2,0.43]
[1759178454074,0.66,214.29,214.2,0.43]
[1759178455252,0.66,214.29,214.21,4.66831613]
[1759178455465,0.66,214.28,214.21,4.66831613]
[1759178456847,0.66,214.28,214.21,16.76910647]
[1759178457260,0.66,214.28,214.21,5.09831613]
[1759178457478,11.66555095,214.31,214.21,38.62831613]
[1759178457479,0.66,214.27,214.21,38.62831613]
[1759178457684,0.66,214.26,214.21,38.62831613]
[1759178457854,2.15103987,214.29,214.21,38.62831613]
[1759178458058,2.81103987,214.29,214.21,39.05831613]
[1759178458274,2.81103987,214.29,214.21,50.72910647]
[1759178458275,0.66,214.29,214.21,50.72910647]
[1759178459275,4.66670646,214.29,214.21,50.72910647]
[1759178459470,0.66,214.28,214.21,50.72910647]
[1759178460150,0.66,214.28,214.21,39.05831613]
[1759178460479,0.66,214.27,214.21,4.66831613]
[1759178461177,0.66,214.28,214.21,4.66831613]
[1759178461378,5.2984127,214.3,214.22,0.43]
[1759178461568,0.66,214.29,214.22,0.43]
[1759178462251,5.32661181,214.29,214.22,0.43]
[1759178463076,5.32661181,214.29,214.23,4.66788031]
[1759178463251,0.66,214.28,214.23,4.66788031]
[1759178463451,0.66,214.27,214.23,4.66788031]
[1759178463677,4.66661181,214.29,214.23,4.66788031]
[1759178463874,0.66,214.28,214.23,4.66788031]
[1759178464074,0.66,214.27,214.22,4.66809821]
[1759178464681,0.66,214.3,214.23,0.43]
[1759178464860,7.81367576,214.31,214.23,0.43]
[1759178464861,0.66,214.29,214.23,0.43]
[1759178466070,5.32669123,214.29,214.21,5.09831613]
[1759178466584,0.66,214.29,214.21,16.76910647]
[1759178467566,0.66,214.29,214.22,0.43]
[1759178468279,5.32659663,214.29,214.23,4.66788031]
[1759178469193,0.66,214.29,214.23,0.43]
[1759178469862,3.14737283,214.31,214.24,26.0]
[1759178470089,0.66,214.35,214.25,34.37]
[1759178470297,0.66,214.35,214.26,2.58103987]
[1759178470464,0.66,214.35,214.27,0.43]
[1759178471292,0.66,214.37,214.3,2.15103987]
[1759178471585,0.66,214.37,214.3,36.50103987]
[1759178472285,33.94,214.4,214.31,0.43]
[1759178472487,0.66,214.37,214.31,0.43]
[1759178473305,0.66,214.37,214.32,4.66592011]
[1759178474988,0.66,214.37,214.32,5.09592011]
[1759178475169,0.66,214.37,214.31,4.66613783]
[1759178475678,0.72,214.36,214.31,4.66613783]
[1759178475890,0.72,214.35,214.31,4.66613783]
[1759178476491,4.66439666,214.39,214.31,4.66613783]
[1759178476696,0.72,214.37,214.31,4.66613783]
[1759178477381,0.72,214.37,214.31,5.09613783]
[1759178477589,0.72,214.39,214.32,0.43]
[1759178478497,5.38442325,214.39,214.31,4.66613783]
[1759178478801,5.38442325,214.39,214.31,16.33148242]
[1759178478802,0.72,214.38,214.31,16.33148242]
[1759178479001,4.66442325,214.39,214.32,0.43]
[1759178479188,34.66,214.4,214.32,0.43]
[1759178479586,39.3241907,214.4,214.31,11.66534459]
[1759178479780,0.72,214.39,214.3,0.43]
[1759178480094,0.72,214.39,214.31,33.92]
[1759178480294,0.72,214.38,214.31,33.92]
[1759178480604,0.72,214.37,214.31,33.92]
[1759178481098,38.6041907,214.4,214.31,33.92]
[1759178481304,0.65,214.36,214.31,38.58613783]
[1759178481503,0.65,214.35,214.29,4.66657333]
[1759178481680,0.65,214.34,214.28,30.66677183]
[1759178481887,0.65,214.33,214.27,33.9]
[1759178482083,0.65,214.32,214.27,33.9]
[1759178482610,0.65,214.31,214.25,33.9]
[1759178483284,0.65,214.31,214.26,4.66722673]
[1759178483807,4.66614094,214.31,214.25,38.56744294]
[1759178484483,0.65,214.32,214.25,38.56744294]
[1759178485386,0.65,214.31,214.25,33.9]
[1759178485816,26.0,214.36,214.26,0.43]
[1759178485993,3.78289731,214.41,214.29,2.15103987]
[1759178486185,0.65,214.4,214.3,2.58103987]
[1759178486391,0.65,214.39,214.31,33.88]
[1759178486790,0.65,214.42,214.32,0.43]
[1759178487517,5.31394071,214.42,214.33,4.66570242]
[1759178487696,0.65,214.41,214.33,4.66570242]
[1759178488804,0.65,214.4,214.33,4.66570242]
[1759178489108,0.65,214.39,214.33,33.88]
[1759178490820,0.65,214.39,214.34,4.66548474]
[1759178490992,4.66421439,214.4,214.34,4.66548474]
[1759178491198,0.65,214.42,214.34,16.32919659]
[1759178491402,26.0,214.45,214.35,0.43]
[1759178491403,14.24559401,214.44,214.35,0.43]
[1759178491604,0.65,214.44,214.35,0.43]
[1759178491804,4.66287832,214.46,214.37,26.0]
[1759178492007,0.65,214.43,214.38,33.88]
[1759178492205,0.65,214.43,214.38,47.96071158]
[1759178492821,0.65,214.43,214.38,52.62530504]
[1759178494594,0.65,214.42,214.38,14.08071158]
[1759178494827,5.31337749,214.44,214.38,33.88]
[1759178495420,4.66337749,214.44,214.38,13.68821788]
[1759178495619,0.65,214.43,214.37,59.86]
[1759178495793,0.65,214.42,214.37,59.86]
[1759178496124,4.66337749,214.44,214.34,0.43]
[1759178496125,0.65,214.41,214.34,4.66528971]
[1759178496419,0.65,214.4,214.34,38.52528971]
[1759178498020,5.31418354,214.4,214.34,38.52528971]
[1759178498214,5.31418354,214.4,214.34,4.66528971]
[1759178498423,0.65,214.39,214.33,64.52569497]
[1759178498605,4.66418354,214.4,214.33,64.52569497]
[1759178498804,0.65,214.38,214.33,64.52569497]
[1759178499005,16.32331265,214.42,214.33,64.52569497]
[1759178499206,0.65,214.37,214.33,64.52569497]
[1759178499596,0.65,214.37,214.33,59.86]
[1759178499809,0.65,214.37,214.33,26.0]
[1759178500013,0.65,214.37,214.33,30.6656726]
[1759178500229,0.65,214.37,214.33,26.0]
[1759178500519,0.65,214.4,214.33,44.93196226]
[1759178500721,0.65,214.4,214.33,45.36196226]
[1759178501799,0.65,214.39,214.34,33.86]
[1759178501992,0.65,214.38,214.34,33.86]
[1759178502191,0.65,214.37,214.34,33.86]
[1759178502417,5.31419764,214.4,214.34,33.86]
[1759178502718,4.66419764,214.4,214.34,38.52530812]
[1759178502910,0.65,214.39,214.34,33.86]
[1759178503219,0.65,214.38,214.34,33.86]
[1759178503628,0.65,214.37,214.28,11.6665726]
[1759178503794,13.59559401,214.39,214.29,34.27]
[1759178504121,0.65,214.38,214.3,33.84]
[1759178504311,0.65,214.37,214.3,33.84]
[1759178504721,4.66497269,214.37,214.31,4.66613783]
[1759178504909,0.65,214.36,214.31,4.66613783]
[1759178505110,0.65,214.35,214.3,38.5063407]
[1759178505422,5.31497269,214.37,214.3,38.9363407]
[1759178505601,4.66497269,214.37,214.3,38.9363407]
[1759178505793,0.65,214.36,214.3,38.9363407]
[1759178506412,26.0,214.4,214.31,0.43]
[1759178507245,14.24559401,214.39,214.31,33.84]
[1759178507522,0.65,214.38,214.31,33.84]
[1759178507726,0.65,214.37,214.31,33.84]
[1759178508221,0.65,214.36,214.31,38.50604682]
[1759178508418,4.66484472,214.37,214.31,38.93604682]
[1759178509133,5.31484472,214.37,214.31,38.93604682]
[1759178512923,5.31484472,214.37,214.31,34.27]
[1759178513125,14.30559401,214.36,214.25,4.66744457]
[1759178513334,13.59559401,214.34,214.26,33.84]
[1759178513532,0.71,214.33,214.26,47.64528296]
[1759178514611,0.71,214.32,214.26,47.62528296]
[1759178514841,0.71,214.32,214.26,33.82]
[1759178515215,0.71,214.38,214.27,0.43]
[1759178515433,0.71,214.38,214.29,26.0]
[1759178515644,18.96956078,214.41,214.3,34.25]
[1759178515943,0.71,214.4,214.31,0.43]
[1759178516445,13.59559401,214.39,214.3,33.82]
[1759178516610,0.71,214.38,214.3,33.82]
[1759178517075,0.71,214.38,214.3,34.25]
[1759178517342,0.71,214.38,214.31,5.09613783]
[1759178517731,0.71,214.37,214.3,38.91635257]
[1759178517932,4.66464837,214.38,214.3,38.48635257]
[1759178518117,0.71,214.36,214.31,33.82]
[1759178518442,4.66464837,214.38,214.31,33.82]
[1759178518744,0.71,214.36,214.3,38.48635257]
[1759178518919,0.71,214.35,214.29,38.48655367]
[1759178519244,5.37540689,214.35,214.29,38.48655367]
[1759178519939,18.97055853,214.37,214.3,0.43]
[1759178520130,18.26055853,214.37,214.3,0.43]
[1759178520336,26.0,214.38,214.3,0.43]
[1759178520532,0.71,214.39,214.3,0.43]
[1759178521032,0.71,214.39,214.31,33.82]
[1759178521246,0.71,214.38,214.31,38.48595117]
[1759178521832,4.66463553,214.38,214.31,33.82]
[1759178522033,0.71,214.37,214.31,34.25]
[1759178522460,4.66463553,214.38,214.31,34.25]
[1759178522632,0.71,214.39,214.32,0.43]
[1759178523340,5.37439942,214.39,214.32,5.09574492]
[1759178523648,13.59559401,214.4,214.32,16.33054521]
[1759178523855,13.59559401,214.41,214.33,0.43]
[1759178524050,18.25958842,214.41,214.33,0.43]
[1759178524425,18.96958842,214.41,214.33,0.43]
[1759178524953,18.96958842,214.41,214.33,34.23]
[1759178525131,0.71,214.4,214.33,33.8]
[1759178525452,14.30559401,214.43,214.35,4.66526708]
[1759178525634,14.30559401,214.43,214.35,5.09526708]
[1759178525949,14.30559401,214.43,214.36,0.43]
[1759178526140,14.30559401,214.43,214.35,38.46526708]
[1759178526345,0.71,214.42,214.35,38.46526708]
[1759178527452,4.66396156,214.41,214.35,38.46526708]
[1759178527652,4.66396156,214.41,214.35,33.8]
[1759178527839,0.71,214.4,214.35,33.8]
[1759178528039,13.59559401,214.43,214.36,0.43]
[1759178528641,0.71,214.42,214.35,33.8]
[1759178529037,13.59559401,214.43,214.36,0.43]
[1759178529850,132.31,214.44,214.37,4.66483183]
[1759178530031,131.6,214.44,214.37,5.09483183]
[1759178530241,0.71,214.47,214.38,0.43]
[1759178530435,0.71,214.47,214.38,3.78719958]
[1759178530640,0.71,214.47,214.39,0.43]
[1759178530830,0.1,214.48,214.4,33.8]
[1759178531031,0.1,214.48,214.41,0.43]
[1759178532127,0.1,214.48,214.42,4.66374405]
[1759178532338,0.1,214.48,214.43,0.43]
[1759178532845,0.1,214.48,214.44,0.43]
[1759178533049,0.1,214.48,214.45,33.78]
[1759178533927,0.81,214.48,214.45,33.78]
[1759178534133,0.71,214.47,214.44,33.78]
[1759178534330,0.67,214.46,214.42,4.66374405]
[1759178534729,4.76247578,214.48,214.41,3.35719958]
[1759178534730,0.67,214.45,214.41,3.35719958]
[1759178534950,0.67,214.44,214.39,8.02139191]
[1759178535254,0.1,214.48,214.43,3.35719958]
[1759178535553,0.1,214.48,214.43,3.78719958]
[1759178535760,0.77,214.48,214.43,3.78719958]
[1759178536173,0.1,214.48,214.44,0.43]
[1759178536474,0.1,214.48,214.44,5.09330908]
[1759178536954,0.1,214.48,214.44,4.66330908]
[1759178537863,0.1,214.48,214.44,5.09330908]
[1759178538252,0.1,214.48,214.44,4.66330908]
[1759178538445,0.1,214.48,214.43,33.78]
[1759178538648,0.77,214.48,214.43,33.78]
[1759178538859,0.77,214.48,214.43,34.21]
[1759178539249,0.1,214.48,214.44,0.43]
[1759178539667,0.1,214.48,214.43,33.78]
[1759178539839,0.67,214.47,214.43,33.78]
[1759178540038,0.67,214.46,214.43,33.78]
[1759178540343,4.76245932,214.48,214.44,5.09330908]
[1759178540344,0.1,214.48,214.44,5.09330908]
[1759178540548,0.1,214.48,214.44,4.66330908]
[1759178540961,0.1,214.48,214.45,0.43]
[1759178541140,0.1,214.48,214.46,0.43]
[1759178541442,0.1,214.48,214.44,20.10878137]
[1759178541762,0.1,214.48,214.45,0.43]
[1759178541958,0.1,214.48,214.46,0.43]
[1759178542364,0.1,214.48,214.44,5.09330908]
[1759178542564,0.1,214.48,214.44,16.75158179]
[1759178543061,0.1,214.48,214.45,33.76]
[1759178543062,0.82,214.48,214.45,33.76]
[1759178543245,0.1,214.48,214.45,34.19]
[1759178544464,0.1,214.48,214.45,33.76]
[1759178545438,0.1,214.48,214.46,4.66287419]
[1759178545744,0.1,214.48,214.46,5.09287419]
[1759178546152,0.1,214.48,214.46,4.66287419]
[1759178546756,0.1,214.48,214.47,0.43]
[1759178547567,0.1,214.48,214.47,5.09265678]
[1759178547964,0.1,214.48,214.47,4.66265678]
[1759178550468,0.42,214.51,214.47,18.69822664]
[1759178550674,131.6,214.52,214.48,33.74]
[1759178551373,4.76153769,214.53,214.44,37.65827271]
[1759178551574,4.76153769,214.53,214.45,33.74]
[1759178552165,4.76153769,214.53,214.45,38.40309162]
[1759178552572,5.38175956,214.52,214.45,38.40309162]
[1759178552750,0.72,214.51,214.45,4.66309162]
[1759178552955,0.72,214.5,214.45,4.66309162]
[1759178553179,0.72,214.49,214.45,38.40309162]
[1759178553369,0.72,214.48,214.45,38.40309162]
[1759178553773,0.72,214.48,214.45,52.32926731]
[1759178554468,0.72,214.5,214.46,33.74]
[1759178554668,0.72,214.5,214.46,38.40270344]
[1759178554982,13.69559401,214.53,214.46,38.40270344]
[1759178555157,0.72,214.5,214.46,38.40270344]
[1759178556467,4.76136804,214.53,214.46,38.40270344]
[1759178556659,0.72,214.52,214.46,38.40270344]
[1759178556860,0.72,214.51,214.46,38.40270344]
[1759178557095,0.72,214.5,214.46,38.40270344]
[1759178557287,0.72,214.52,214.46,39.07270344]
[1759178557458,0.72,214.52,214.46,50.72988892]
[1759178557654,0.1,214.53,214.47,0.67]
[1759178558669,0.1,214.53,214.48,3.35719958]
[1759178558959,0.1,214.53,214.49,34.41]
[1759178559460,0.1,214.53,214.5,0.67]
[1759178559887,0.1,214.53,214.49,33.74]
[1759178560064,0.1,214.53,214.5,0.67]
[1759178560776,0.1,214.53,214.5,5.33189616]
[1759178561291,0.1,214.53,214.51,0.67]
[1759178561471,0.1,214.53,214.52,33.72]
[1759178561662,0.1,214.53,214.52,39.05157001]
[1759178562765,0.1,214.53,214.52,38.38157001]
[1759178563984,0.1,214.53,214.51,4.66178732]
[1759178564192,0.1,214.53,214.52,33.72]
[1759178564687,0.1,214.53,214.52,34.39]
[1759178565193,0.1,214.53,214.52,33.72]
[1759178565491,0.1,214.53,214.52,34.39]
[1759178565993,0.1,214.53,214.52,39.05157001]
[1759178566379,0.1,214.53,214.52,41.19647195]
[1759178567692,0.1,214.56,214.52,78.85039699]
[1759178567861,0.1,214.56,214.55,2.14490194]
[1759178568061,0.1,214.56,214.55,40.50582014]
[1759178568273,0.1,214.56,214.55,41.17582014]
[1759178570969,0.1,214.56,214.55,38.3609182]
[1759178571169,0.77,214.56,214.53,6.80625202]
[1759178571471,0.1,214.56,214.54,33.7]
[1759178571884,0.77,214.56,214.54,33.7]
[1759178572274,0.67,214.55,214.52,26.0]
[1759178572482,0.67,214.54,214.53,33.7]
[1759178573594,0.1,214.56,214.53,38.36132473]
[1759178573790,0.1,214.56,214.53,40.50622667]
[1759178573970,0.1,214.56,214.54,0.68]
[1759178574174,0.1,214.56,214.55,33.7]
[1759178575795,0.1,214.56,214.55,38.3609182]
[1759178579395,0.1,214.56,214.55,33.7]
[1759178580302,0.1,214.56,214.55,38.3609182]
[1759178580502,0.77,214.56,214.53,2.14490194]
[1759178580675,0.67,214.55,214.54,33.68]
[1759178580870,0.1,214.56,214.54,33.68]
[1759178582279,0.1,214.56,214.55,7.48582014]
[1759178582491,0.1,214.56,214.55,6.80582014]
[1759178582693,0.1,214.56,214.55,7.48582014]
[1759178583993,1e-08,214.56,214.55,21.08141415]
[1759178584196,0.1,214.61,214.56,14.04]
[1759178584389,1.96850403,214.75,214.68,26.0]
[1759178584585,0.67,214.73,214.69,35.82490194]
[1759178585191,0.1,214.75,214.69,2.14490194]
[1759178585396,0.1,214.75,214.69,36.50490194]
[1759178585703,0.77,214.75,214.69,35.82490194]
[1759178585894,0.67,214.73,214.69,35.82490194]
[1759178586307,0.1,214.75,214.69,54.99780257]
[1759178586481,0.77,214.75,214.69,20.63780257]
[1759178586805,0.77,214.75,214.69,54.29780257]
[1759178587011,0.67,214.74,214.69,20.63780257]
[1759178587323,0.67,214.74,214.69,54.29780257]
[1759178587690,0.67,214.74,214.69,52.15290063]
[1759178587993,0.67,214.74,214.69,54.29780257]
[1759178588191,0.67,214.74,214.69,20.63780257]
[1759178588411,0.67,214.74,214.69,54.29780257]
[1759178588620,0.77,214.75,214.69,54.29780257]
[1759178588816,0.67,214.72,214.69,52.15290063]
[1759178588986,0.67,214.72,214.69,54.29780257]
[1759178589187,0.67,214.74,214.69,54.29780257]
[1759178589513,0.67,214.72,214.69,52.15290063]
[1759178589696,0.1,214.75,214.69,54.29780257]
[1759178590088,0.67,214.74,214.69,54.29780257]
[1759178590506,0.1,214.75,214.69,54.97780257]
[1759178590705,0.67,214.73,214.69,20.63780257]
[1759178590899,0.67,214.73,214.69,54.29780257]
[1759178591098,0.67,214.73,214.69,20.63780257]
[1759178591620,0.67,214.73,214.69,54.29780257]
[1759178592309,0.1,214.75,214.69,54.97780257]
[1759178592499,0.67,214.74,214.69,54.29780257]
[1759178592813,0.67,214.74,214.69,54.97780257]
[1759178593010,0.67,214.74,214.69,54.29780257]
[1759178594612,0.72,214.73,214.69,54.27780257]
[1759178595191,0.1,214.75,214.69,18.49290063]
[1759178595396,0.72,214.72,214.69,54.27780257]
[1759178595889,0.72,214.74,214.69,54.27780257]
[1759178596092,0.72,214.74,214.69,54.95780257]
[1759178596395,0.1,214.75,214.69,54.95780257]
[1759178596602,0.82,214.75,214.69,54.95780257]
[1759178596990,0.1,214.75,214.69,89.89189357]
[1759178597191,0.1,214.75,214.72,26.0]
[1759178597395,0.1,214.75,214.73,35.78490194]
[1759178597616,0.1,214.75,214.74,33.64]
[1759178598316,0.82,214.75,214.74,33.64]
[1759178598615,0.82,214.75,214.74,38.29679426]
[1759178598918,0.1,214.75,214.74,4.65679426]
[1759178599213,0.82,214.75,214.74,38.29679426]
[1759178599601,0.82,214.75,214.74,33.64]
[1759178601293,0.1,214.75,214.74,33.64]
[1759178601493,0.1,214.75,214.74,38.29679426]
[1759178602221,0.1,214.75,214.74,39.01679426]
[1759178602720,0.1,214.75,214.74,41.1616962]
[1759178602916,0.1,214.78,214.77,26.0]
[1759178603117,0.1,214.78,214.77,61.76490194]
[1759178603295,0.1,214.78,214.77,62.48490194]
[1759178605097,0.1,214.78,214.77,32.80104572]
[1759178605319,0.1,214.78,214.77,67.14104572]
[1759178605625,0.1,214.78,214.77,66.42104572]
[1759178607216,0.81,214.78,214.77,6.80104572]
[1759178607704,0.81,214.78,214.77,40.42104572]
[1759178607905,0.81,214.78,214.69,13.83502183]
[1759178608208,0.71,214.77,214.7,33.62]
[1759178608405,0.71,214.76,214.72,2.14490194]
[1759178608611,0.71,214.75,214.73,33.62]
[1759178609609,0.71,214.75,214.73,38.27699119]
[1759178609826,0.1,214.78,214.73,38.27700453]
[1759178610008,0.71,214.74,214.73,38.27700453]
[1759178610410,0.71,214.77,214.73,38.27700453]
[1759178610616,0.71,214.76,214.74,33.62]
[1759178610816,0.71,214.75,214.74,33.62]
[1759178611203,0.71,214.77,214.74,38.27679426]
[1759178611405,0.71,214.76,214.74,38.27679426]
[1759178612316,0.81,214.78,214.74,49.91877991]
[1759178612931,0.1,214.78,214.76,2.14490194]
[1759178613142,0.1,214.78,214.77,33.62]
[1759178613430,0.1,214.78,214.77,38.27614378]
[1759178614921,0.81,214.78,214.77,33.62]
[1759178615237,0.1,214.78,214.77,38.27614378]
[1759178615610,0.81,214.78,214.77,4.65614378]